bitfinex-derivatives/quotes_ETHF0:USTF0_20251006
["timestamp","ask_amount","ask_price","bid_price","bid_amount"]
[1759712817868,0.95635,4507.1,4506.5,0.1327]
[1759712817869,4.05364,4507.2,4507.1,0.7632]
[1759712818070,4.05364,4507.2,4506.3,3.4227]
[1759712818071,0.4466,4506.4,4506.3,3.4227]
[1759712818471,0.7822,4506.4,4506.3,3.644]
[1759712818676,0.7822,4506.4,4506.3,3.971]
[1759712819272,0.3513,4507.0,4506.4,0.39931]
[1759712819471,0.2215,4506.5,4506.4,0.83551]
[1759712819673,0.5571,4506.5,4506.4,1.16251]
[1759712820379,0.3513,4507.0,4506.7,0.39927]
[1759712820579,0.7822,4506.8,4506.7,1.16247]
[1759712821079,0.78445393,4507.8,4507.7,0.4362]
[1759712821280,0.78445393,4507.8,4507.7,3.971]
[1759712821281,0.55935393,4507.8,4507.7,3.971]
[1759712821577,0.78445393,4507.8,4507.7,3.2078]
[1759712821788,0.2215,4507.4,4507.3,3.2078]
[1759712822078,0.5571,4507.7,4507.6,0.4362]
[1759712822283,0.5571,4507.7,4507.6,0.7632]
[1759712822969,0.00225393,4507.8,4507.7,1.16239]
[1759712823380,0.00225393,4507.8,4507.7,0.7632]
[1759712824981,0.00225393,4507.8,4507.7,0.9882]
[1759712827380,0.78445393,4507.8,4507.7,0.6612]
[1759712827881,0.78445393,4507.8,4507.7,0.9882]
[1759712828081,0.55935393,4507.8,4507.7,0.9882]
[1759712828484,0.00225393,4507.8,4507.7,0.9882]
[1759712828677,0.78445393,4507.8,4507.7,0.7632]
[1759712828882,0.78445393,4507.8,4507.7,0.9882]
[1759712829481,0.00225393,4507.8,4507.7,0.9882]
[1759712830786,0.00225393,4507.8,4507.7,5.9882]
[1759712831384,3.7649,4509.3,4509.2,0.4362]
[1759712831582,3.7649,4509.3,4509.2,0.7632]
[1759712831583,0.5571,4509.3,4509.2,0.7632]
[1759712832476,0.00217612,4509.3,4509.2,0.7632]
[1759712832683,0.55927612,4509.3,4509.2,0.7632]
[1759712834282,0.78437612,4509.3,4509.2,0.7632]
[1759712834677,0.55927612,4509.3,4509.2,0.7632]
[1759712834883,0.00217612,4509.3,4509.2,0.7632]
[1759712835085,0.00217612,4509.3,4509.2,0.9882]
[1759712835482,0.00217612,4509.3,4509.2,1.38726]
[1759712836080,0.22367612,4509.3,4509.2,0.9882]
[1759712836278,0.78437612,4509.3,4509.2,0.2149]
[1759712836491,0.78437612,4509.3,4509.2,0.4362]
[1759712836884,0.78437612,4509.3,4509.2,0.2213]
[1759712837090,0.9085,4509.0,4508.9,0.2149]
[1759712837294,0.9085,4509.0,4508.9,0.7632]
[1759712837489,0.33777612,4509.3,4509.0,0.3103]
[1759712837689,0.00217612,4509.3,4509.2,0.7595]
[1759712838586,0.54487612,4509.3,4509.2,0.7595]
[1759712839395,0.76267612,4509.3,4509.2,0.4492]
[1759712839589,1.06468,4509.0,4508.9,0.222]
[1759712839789,0.323,4509.2,4508.9,0.4492]
[1759712840096,0.323,4509.2,4509.1,0.7595]
[1759712840291,0.2197,4509.2,4509.1,0.7595]
[1759712840486,0.00217612,4509.3,4509.2,1.15856]
[1759712840686,0.00217612,4509.3,4509.2,1.38356]
[1759712841998,0.54487612,4509.3,4509.2,1.38356]
[1759712842186,0.76267612,4509.3,4509.2,0.6742]
[1759712842385,0.76267612,4509.3,4509.2,1.38356]
[1759712842698,0.00217612,4509.3,4509.2,1.38356]
[1759712842897,0.54487612,4509.3,4509.2,0.9845]
[1759712843299,0.00217612,4509.3,4509.2,0.9845]
[1759712846197,0.76267612,4509.3,4509.2,0.6742]
[1759712846393,0.00217612,4509.3,4509.2,0.9845]
[1759712848400,0.00217612,4509.3,4509.2,5.9845]
[1759712848996,0.00217612,4509.3,4509.2,0.9845]
[1759712854998,0.00217612,4509.3,4509.2,1.9285322]
[1759712855201,0.00217612,4509.3,4509.2,0.4492]
[1759712855202,0.77197612,4509.3,4509.2,0.4492]
[1759712855701,0.77197612,4509.3,4509.2,0.7908]
[1759712856597,0.77197612,4509.3,4509.2,1.0158]
[1759712857101,0.00217612,4509.3,4509.2,1.0158]
[1759712857300,0.21127612,4509.3,4509.2,1.0158]
[1759712857508,0.00217612,4509.3,4509.2,1.0158]
[1759712858102,0.54337612,4509.3,4509.2,1.0158]
[1759712858402,0.21127612,4509.3,4509.2,1.0158]
[1759712858604,0.54337612,4509.3,4509.2,1.0158]
[1759712859605,0.77197612,4509.3,4509.2,1.0158]
[1759712859908,1.16886,4509.2,4509.1,3.4328]
[1759712860104,6.16886,4509.2,4509.1,3.2078]
[1759712860799,1.16889,4508.8,4508.7,0.225]
[1759712861710,0.7698,4508.7,4508.6,3.2078]
[1759712862007,1.16895,4508.2,4508.1,3.2078]
[1759712862500,1.16895,4508.2,4508.0,0.40254846]
[1759712862706,1.16895,4508.2,4508.0,0.225]
[1759712862900,0.7698,4507.8,4507.7,1.59067947]
[1759712863106,1.16899,4507.7,4507.5,1.59067947]
[1759712863309,0.7698,4507.4,4507.3,0.225]
[1759712863810,0.73133,4507.3,4507.1,3.2078]
[1759712864017,0.7698,4507.2,4507.1,3.6305]
[1759712864200,0.1266,4508.0,4507.9,0.2117]
[1759712864399,0.5643,4508.0,4507.9,0.4227]
[1759712864705,0.1266,4509.0,4508.0,0.894]
[1759712864911,0.3552,4508.0,4507.9,0.225]
[1759712865099,0.5643,4508.0,4507.9,0.225]
[1759712865301,0.96348,4508.0,4507.4,0.3416]
[1759712865500,0.3321,4507.9,4507.0,4.79847947]
[1759712865804,0.5412,4507.1,4507.0,3.9721]
[1759712866009,0.5412,4507.1,4507.0,4.1971]
[1759712866311,0.8964,4507.5,4507.4,0.2117]
[1759712868311,0.8964,4507.5,4507.3,0.225]
[1759712868312,0.7509,4507.1,4507.0,3.4279]
[1759712868615,0.7509,4507.1,4507.0,3.2078]
[1759712869511,0.7509,4507.1,4507.0,3.4279]
[1759712869712,0.7509,4507.1,4507.0,3.82716]
[1759712869912,0.7509,4507.1,4507.0,4.36216]
[1759712870112,0.7509,4507.1,4507.0,3.9629]
[1759712870513,0.5398,4507.1,4507.0,3.9629]
[1759712870708,0.883,4507.5,4507.4,0.2201]
[1759712871112,0.883,4507.5,4507.4,0.7551]
[1759712872216,0.883,4507.5,4507.4,0.4425]
[1759712872816,0.883,4507.5,4507.4,0.2201]
[1759712878132,0.324,4507.5,4507.4,0.7551]
[1759712878325,3.2078,4507.6,4507.5,0.39921]
[1759712878620,0.7785,4508.0,4507.9,0.4425]
[1759712879020,0.7509,4508.0,4507.9,0.7551]
[1759712879328,0.5398,4508.0,4507.9,0.7551]
[1759712880927,0.324,4508.4,4508.3,0.7551]
[1759712881129,0.7509,4508.4,4508.3,0.4425]
[1759712881424,0.883,4508.0,4507.9,0.225]
[1759712882120,0.7509,4507.6,4507.5,3.4279]
[1759712882320,0.7509,4507.6,4507.5,3.8753]
[1759712883121,0.7509,4507.6,4507.5,4.1879]
[1759712884928,0.7509,4507.6,4507.5,3.8753]
[1759712886123,0.7509,4507.6,4507.5,4.1879]
[1759712886924,3.73903,4508.5,4508.3,0.2201]
[1759712887130,0.7509,4508.4,4508.3,0.4425]
[1759712887926,0.7509,4508.1,4508.0,0.4425]
[1759712888127,1.15006,4508.1,4508.0,0.4425]
[1759712888625,1.15006,4508.1,4507.5,3.2078]
[1759712888626,0.2158,4507.6,4507.5,3.2078]
[1759712888929,0.7509,4507.6,4507.5,3.4279]
[1759712889524,0.7509,4507.6,4507.5,3.6503]
[1759712889827,0.7509,4507.6,4507.5,3.9629]
[1759712890122,0.7509,4507.6,4507.5,3.2078]
[1759712890325,0.7509,4507.6,4507.5,3.4279]
[1759712890722,0.7509,4507.6,4507.5,3.2078]
[1759712891432,0.7509,4507.1,4507.0,3.2078]
[1759712892026,0.1321,4507.0,4506.9,0.2201]
[1759712892225,0.559,4507.0,4506.9,0.2201]
[1759712892430,0.559,4507.0,4506.8,0.225]
[1759712892729,0.7509,4506.9,4506.8,0.225]
[1759712892919,0.7509,4506.9,4506.8,0.4451]
[1759712894324,0.7509,4506.9,4506.8,0.9801]
[1759712894525,0.7509,4507.4,4507.3,0.2201]
[1759712894731,0.559,4507.0,4506.9,0.61936]
[1759712895031,0.559,4507.0,4506.8,0.62427]
[1759712895231,0.7509,4506.9,4506.8,0.84437]
[1759712895831,0.7509,4506.9,4506.8,1.06677]
[1759712896028,0.7509,4506.9,4506.8,0.62427]
[1759712896634,0.7509,4506.9,4506.8,0.84437]
[1759712897132,0.7509,4506.9,4506.8,1.37937]
[1759712897528,0.5398,4506.9,4506.8,1.37937]
[1759712899229,0.7465,4507.3,4506.8,0.5376]
[1759712899432,0.1321,4507.5,4506.9,0.61866]
[1759712899433,0.8781,4507.0,4506.9,0.61866]
[1759712900125,0.8781,4507.0,4506.9,1.16526]
[1759712901544,0.5316,4507.0,4506.9,1.16526]
[1759712902438,0.8786,4507.5,4507.4,0.61862]
[1759712902632,0.8786,4507.5,4507.4,0.82782]
[1759712902833,0.8786,4507.5,4507.4,1.16522]
[1759712903032,3.9543,4507.8,4507.7,1.16519]
[1759712903335,3.9543,4507.8,4507.7,0.82779]
[1759712903727,3.2078,4508.3,4508.0,0.1301]
[1759712903928,3.4137,4508.3,4508.2,1.16515]
[1759712904330,3.2078,4508.3,4508.2,1.16515]
[1759712905730,3.2078,4508.3,4508.2,0.766]
[1759712906134,3.6286,4508.3,4508.2,0.766]
[1759712906535,3.4137,4508.3,4508.2,0.766]
[1759712906932,3.6286,4508.3,4508.2,0.766]
[1759712908835,0.4208,4508.3,4508.2,0.766]
[1759712909235,0.2059,4508.3,4508.2,0.766]
[1759712910037,0.0979,4509.0,4508.9,0.4286]
[1759712910038,3.6286,4509.0,4508.9,0.4286]
[1759712910236,3.6286,4509.0,4508.9,0.766]
[1759712911142,3.9543,4509.0,4508.9,0.766]
[1759712911537,0.2059,4508.7,4508.6,0.5568]
[1759712911740,0.2149,4508.0,4507.8,1.59067947]
[1759712911938,1.14571,4507.7,4507.6,3.2078]
[1759712912942,1.14573,4507.5,4507.4,0.5568]
[1759712913135,0.7465,4507.5,4507.4,0.5568]
[1759712913336,0.4208,4507.5,4507.4,0.5568]
[1759712913839,0.4208,4507.5,4507.4,0.7638]
[1759712915839,0.39932,4507.2,4507.1,0.5277]
[1759712916141,0.39932,4507.2,4507.0,3.51754552]
[1759712916142,0.7454,4507.1,4507.0,0.18004552]
[1759712916342,0.429,4506.8,4506.7,0.5277]
[1759712916747,0.429,4506.8,4506.7,0.70231051]
[1759712916943,0.39939,4506.2,4506.1,1.59279359]
[1759712917247,1.53306271,4506.2,4506.1,0.00211412]
[1759712918442,0.7454,4506.2,4506.1,0.52981412]
[1759712918644,0.7454,4506.2,4506.1,0.73681412]
[1759712920848,0.429,4506.2,4506.1,0.73681412]
[1759712921053,3.2078,4506.5,4506.4,0.4151]
[1759712921351,3.2078,4506.5,4506.4,0.7347]
[1759712922144,3.9532,4506.5,4506.4,0.5277]
[1759712922345,3.9532,4506.5,4506.4,0.3196]
[1759712922848,3.9532,4506.5,4506.1,0.00211412]
[1759712923049,0.429,4506.3,4506.2,0.5277]
[1759712923250,0.429,4506.3,4506.2,0.7347]
[1759712923450,0.2173,4506.3,4506.2,0.7347]
[1759712923653,3.2078,4506.5,4506.3,0.3196]
[1759712924154,3.4251,4506.5,4506.4,0.4151]
[1759712924453,3.4251,4506.5,4506.4,0.7347]
[1759712926154,3.9532,4506.5,4506.4,0.3196]
[1759712926554,3.9532,4506.5,4506.4,0.5277]
[1759712927453,3.9532,4506.5,4506.4,0.7347]
[1759712927454,3.6368,4506.5,4506.4,0.7347]
[1759712929458,0.429,4506.5,4506.4,0.7347]
[1759712939366,0.7607,4506.5,4506.4,0.7347]
[1759712939564,0.429,4506.5,4506.4,0.7347]
[1759712940565,0.2173,4506.5,4506.4,0.7347]
[1759712943870,0.7563,4506.5,4506.4,0.5277]
[1759712944962,0.7563,4506.5,4506.4,0.3196]
[1759712945961,0.2073,4506.3,4506.1,0.00211412]
[1759712946166,1.53846397,4506.2,4506.1,0.00211412]
[1759712948665,0.7505,4505.2,4505.1,0.5431]
[1759712948867,1.17884446,4505.2,4505.1,0.3245]
[1759712949269,0.84714446,4505.2,4505.1,0.3245]
[1759712949771,0.84995214,4505.2,4505.1,0.32660851]
[1759712950172,0.84995214,4505.2,4505.1,0.54520851]
[1759712952163,0.06198817,4505.2,4505.1,0.54520851]
[1759712952475,0.00280768,4505.2,4505.1,0.75570851]
[1759712957175,0.00500768,4505.2,4505.1,0.75570851]
[1759712957868,0.00390768,4505.2,4505.1,0.75570851]
[1759712958976,0.00280768,4505.2,4505.1,0.75570851]
[1759712964771,3.2078,4506.0,4505.9,0.7843]
[1759712965176,3.2092,4506.0,4505.9,0.7843]
[1759712965771,3.21124022,4506.0,4505.9,0.7843]
[1759712968278,3.20984022,4506.0,4505.9,0.7843]
[1759712968977,0.00204022,4506.0,4505.9,0.7843]
[1759712976786,0.3094,4505.2,4505.1,0.00210851]
[1759712977081,0.1547,4504.6,4504.5,0.1285]
[1759712977384,0.0967,4504.1,4504.0,0.1235]
[1759712977691,0.3094,4503.6,4503.5,0.5588]
[1759712977983,0.1547,4503.6,4503.5,0.5606652]
[1759712978382,0.3094,4503.6,4503.5,0.5606652]
[1759712978785,0.3094,4503.6,4503.5,0.8742652]
[1759712980680,0.39955,4503.9,4503.5,0.5606652]
[1759712980880,0.1547,4503.7,4503.6,0.5277]
[1759712981181,0.1547,4503.7,4503.6,0.7405]
[1759712982086,0.3094,4503.7,4503.6,0.7405]
[1759712983379,0.3094,4503.7,4503.5,0.0018652]
[1759712983579,4.23847,4503.6,4503.5,0.0018652]
[1759712984175,4.23847,4503.6,4503.5,0.6601652]
[1759712984176,4.14177,4503.6,4503.5,0.6601652]
[1759712984379,4.23847,4503.6,4503.5,0.3154652]
[1759712984577,9.23847,4503.6,4503.5,0.0018652]
[1759712984783,9.23847,4503.6,4503.5,0.3154652]
[1759712986283,3.5172,4503.6,4503.5,0.8742652]
[1759712986589,3.7422,4503.6,4503.5,0.8742652]
[1759712986887,3.4328,4503.6,4503.5,0.8742652]
[1759712987582,3.83237,4503.6,4503.5,0.8742652]
[1759712987989,3.98707,4503.6,4503.5,0.8742652]
[1759712988587,4.14187,4503.6,4503.5,0.8742652]
[1759712990790,3.83237,4503.6,4503.5,0.8742652]
[1759712990989,3.98717,4503.6,4503.5,0.8742652]
[1759712991992,4.14197,4503.6,4503.5,0.8742652]
[1759712995290,3.98717,4503.6,4503.5,0.8742652]
[1759712995494,0.99871,4504.7,4504.0,0.1271]
[1759712995495,3.2078,4504.1,4504.0,0.1271]
[1759712995692,0.225,4504.1,4504.0,0.5665]
[1759712995886,0.225,4504.1,4504.0,0.902]
[1759712997689,0.5346,4504.1,4504.0,0.902]
[1759712997883,0.6313,4504.1,4503.5,0.1337652]
[1759712998089,1.75168598,4503.8,4503.7,0.3355]
[1759712998288,5.18448598,4503.8,4503.7,0.3355]
[1759712999190,5.08778598,4503.8,4503.7,0.7749]
[1759712999793,3.7424,4503.8,4503.7,0.7749]
[1759713000391,3.7424,4503.8,4503.7,0.5501]
[1759713000896,3.8391,4503.8,4503.7,0.3355]
[1759713001196,0.39956,4503.7,4503.5,0.3373652]
[1759713001491,1.48043598,4503.6,4503.5,0.6790652]
[1759713001697,1.48043598,4503.6,4503.5,0.9038652]
[1759713001698,0.5346,4503.6,4503.5,0.9038652]
[1759713002396,0.3096,4503.6,4503.5,0.9038652]
[1759713002798,0.5346,4503.6,4503.5,0.9038652]
[1759713002990,0.5346,4503.6,4503.5,0.4644652]
[1759713003191,0.6313,4503.6,4503.5,0.4644652]
[1759713003586,0.5346,4503.6,4503.5,0.6790652]
[1759713004293,0.5346,4503.6,4503.5,0.9038652]
[1759713006696,3.2078,4503.8,4503.7,0.7749]
[1759713006997,0.0967,4504.9,4503.5,0.1289652]
[1759713006998,3.2078,4504.3,4504.2,0.4394]
[1759713007194,3.4328,4504.3,4504.2,0.7749]
[1759713007499,3.2078,4504.3,4504.2,0.7749]
[1759713008206,3.3626,4504.3,4504.2,0.7749]
[1759713008393,0.99881,4504.2,4503.7,0.3355]
[1759713008600,0.70917,4503.6,4503.5,0.6790652]
[1759713008907,0.93317,4503.6,4503.5,0.6790652]
[1759713010504,0.5336,4503.6,4503.5,0.9038652]
[1759713011093,0.3788,4503.6,4503.5,0.9038652]
[1759713012000,3.2078,4504.4,4504.3,0.4394]
[1759713012197,3.2078,4504.4,4504.3,0.7749]
[1759713013101,0.224,4504.6,4504.5,0.902]
[1759713013803,0.3788,4504.6,4504.5,0.902]
[1759713013996,0.5336,4504.6,4504.5,0.6772]
[1759713014299,0.6303,4504.6,4504.5,0.3355]
[1759713015401,0.6303,4504.6,4504.0,0.1271]
[1759713015608,3.91694,4504.1,4504.0,0.6772]
[1759713015899,3.4318,4504.1,4504.0,0.902]
[1759713016198,3.7414,4504.1,4504.0,0.902]
[1759713018806,3.7414,4504.1,4503.5,0.6550652]
[1759713018807,0.3096,4503.6,4503.5,0.6550652]
[1759713019000,3.7414,4503.6,4503.5,0.6550652]
[1759713020001,3.7414,4503.6,4503.5,0.8667652]
[1759713025813,3.2078,4503.6,4503.5,1.2663552]
[1759713026309,0.224,4503.7,4503.5,1.2663552]
[1759713026614,0.224,4503.7,4503.6,0.7378]
[1759713026911,0.3788,4503.7,4503.6,0.7378]
[1759713027113,0.6303,4503.7,4503.6,0.3099]
[1759713027313,0.80588,4503.6,4503.5,0.0018652]
[1759713027510,4.01368,4503.6,4503.5,0.4429652]
[1759713027912,3.91698,4503.6,4503.5,0.4429652]
[1759713028110,3.91698,4503.6,4503.5,0.6591652]
[1759713029719,4.01368,4503.6,4503.5,0.3117652]
[1759713029915,4.01368,4503.6,4503.5,0.0018652]
[1759713030211,4.01368,4503.6,4502.9,0.02220816]
[1759713030212,0.0967,4503.0,4502.9,0.02220816]
[1759713030419,3.8381,4503.0,4502.9,0.02220816]
[1759713030618,3.7414,4503.0,4502.9,0.76000816]
[1759713030814,3.3626,4503.0,4502.9,0.76000816]
[1759713031117,3.5866,4503.0,4502.9,0.76000816]
[1759713031519,3.7414,4503.0,4502.9,0.76203731]
[1759713033214,3.8384,4503.0,4502.9,0.02423731]
[1759713035126,3.2078,4503.0,4502.9,0.77713731]
[1759713035422,3.587,4503.0,4502.9,0.77713731]
[1759713035817,3.2078,4503.0,4502.9,1.17676731]
[1759713036020,3.4318,4503.0,4502.9,1.17676731]
[1759713036423,3.4318,4503.0,4502.9,0.77713731]
[1759713036615,3.4318,4503.0,4502.9,1.17676731]
[1759713036817,3.4318,4503.0,4502.9,0.77713731]
[1759713037322,0.224,4503.0,4502.9,0.77713731]
[1759713037722,0.3792,4503.0,4502.9,0.77713731]
[1759713038418,0.1552,4503.0,4502.9,0.77713731]
[1759713038619,0.3792,4503.0,4502.9,0.77713731]
[1759713038821,0.1552,4503.0,4502.9,0.77713731]
[1759713039021,0.3792,4503.0,4502.9,0.77713731]
[1759713039521,0.1552,4503.0,4502.9,0.77713731]
[1759713039721,0.3792,4503.0,4502.9,0.77713731]
[1759713040926,3.587,4503.0,4502.9,0.77713731]
[1759713041319,3.2078,4503.0,4502.9,0.77713731]
[1759713045729,3.2078,4504.0,4503.5,0.4561]
[1759713045923,3.2078,4504.0,4503.9,0.7529]
[1759713046622,0.1552,4504.6,4504.5,0.136]
[1759713046828,0.5344,4504.6,4504.5,0.5688]
[1759713047326,0.5344,4504.6,4504.5,0.8889]
[1759713053327,0.3104,4504.6,4504.5,0.8889]
[1759713053527,0.5344,4504.6,4504.5,0.8889]
[1759713053823,0.3104,4504.6,4504.5,0.8889]
[1759713054229,0.5344,4504.6,4504.5,0.8889]
[1759713056634,0.93388,4504.6,4504.5,0.8889]
[1759713057622,0.5344,4504.6,4504.5,0.8889]
[1759713060429,0.3792,4504.6,4504.5,0.8889]
[1759713060629,0.224,4504.6,4504.5,0.8889]
[1759713061026,0.3792,4504.6,4504.5,0.8889]
[1759713061337,0.5344,4504.6,4504.5,0.8889]
[1759713062127,0.3104,4503.9,4503.5,0.4677]
[1759713062439,1.59622013,4503.6,4503.5,0.3317]
[1759713062632,1.82022013,4503.6,4503.5,0.4568]
[1759713062837,1.32365013,4503.6,4503.5,0.8803]
[1759713063339,1.42065013,4503.6,4503.5,0.3317]
[1759713065633,1.32365013,4503.6,4503.5,0.6686]
[1759713066529,3.2078,4504.0,4503.6,0.3317]
[1759713066733,3.2078,4504.0,4503.9,0.7552]
[1759713066932,0.88829035,4506.0,4504.6,0.7552]
[1759713066933,3.363,4504.7,4504.6,0.7552]
[1759713067130,3.587,4504.7,4504.6,0.7552]
[1759713067531,3.363,4504.7,4504.6,0.7552]
[1759713067730,3.587,4504.7,4504.6,0.7552]
[1759713068440,3.2078,4505.3,4505.2,0.7552]
[1759713069735,0.224,4505.4,4505.3,0.3317]
[1759713069938,0.224,4505.4,4505.3,0.7552]
[1759713070642,3.2078,4505.8,4505.5,0.1251]
[1759713070838,0.224,4505.7,4505.6,0.4235]
[1759713071035,0.3792,4505.7,4505.6,0.7552]
[1759713071543,0.5344,4505.7,4505.6,0.7552]
[1759713072042,0.80684,4505.1,4505.0,0.1251]
[1759713072344,0.3104,4504.2,4504.1,3.4196]
[1759713072541,0.3104,4504.2,4504.1,3.6313]
[1759713072941,0.3104,4504.2,4504.1,3.963]
[1759713073243,0.39957,4503.6,4503.5,0.3369]
[1759713073546,0.8812,4503.5,4503.4,3.2078]
[1759713073940,0.61271,4503.1,4503.0,0.5486]
[1759713075343,0.61271,4503.1,4503.0,0.8803]
[1759713076242,0.39961,4503.1,4503.0,0.8803]
[1759713077142,0.83471,4503.1,4503.0,0.8803]
[1759713077343,1.15441,4503.1,4503.0,0.8803]
[1759713077541,1.15441,4503.1,4503.0,0.7552]
[1759713078242,1.15441,4503.1,4503.0,0.2118]
[1759713078445,0.5457,4503.0,4502.9,0.02423731]
[1759713078643,0.769,4503.0,4502.9,0.59083731]
[1759713079239,0.2096,4503.0,4502.9,0.81803731]
[1759713079447,3.60739,4503.3,4503.2,0.7938]
[1759713079746,4.37639,4503.3,4503.2,0.7938]
[1759713083539,0.39958,4503.5,4503.3,0.3429]
[1759713083743,0.39954,4503.9,4503.7,0.4509]
[1759713083945,0.2096,4503.8,4503.7,0.4509]
[1759713084145,0.62354,4503.9,4503.7,0.4509]
[1759713084347,0.39954,4503.9,4503.8,0.3429]
[1759713084647,0.60914,4503.9,4503.8,0.7938]
[1759713085841,0.2096,4503.9,4503.8,0.7938]
[1759713086046,3.4318,4504.0,4503.9,0.7938]
[1759713086248,0.6569,4504.0,4503.9,0.7938]
[1759713086447,0.993,4504.0,4503.9,0.7938]
[1759713088146,0.993,4504.0,4503.5,0.9232]
[1759713088147,0.83247,4503.6,4503.5,0.9232]
[1759713088450,1.16857,4503.6,4503.5,0.9232]
[1759713088645,0.4329,4503.6,4503.5,0.9232]
[1759713088957,0.39954,4503.9,4503.5,0.9232]
[1759713089246,0.73564,4503.9,4503.5,0.5803]
[1759713089452,1.16854,4503.9,4503.8,0.7938]
[1759713089853,0.769,4503.9,4503.8,0.7938]
[1759713090250,0.4329,4503.9,4503.8,0.7938]
[1759713091448,0.769,4503.9,4503.8,0.7938]
[1759713094052,0.62353,4504.1,4504.0,0.1357]
[1759713094252,0.438,4504.1,4504.0,0.8994]
[1759713094758,0.7731,4504.1,4504.0,0.8994]
[1759713095158,0.9874,4504.1,4504.0,0.8994]
[1759713096460,0.9874,4504.1,4504.0,0.7637]
[1759713096657,0.4283,4503.7,4503.6,0.4316]
[1759713096964,0.7634,4503.7,4503.6,0.7637]
[1759713097462,0.4283,4503.7,4503.6,0.7637]
[1759713098761,0.7634,4503.7,4503.6,0.5433]
[1759713099362,0.7634,4503.7,4503.6,0.7637]
[1759713099363,0.4283,4503.7,4503.6,0.7637]
[1759713099565,0.214,4503.7,4503.6,0.7637]
[1759713100658,0.214,4504.0,4503.9,0.4316]
[1759713101364,0.7634,4504.0,4503.9,0.7637]
[1759713102965,0.4283,4504.0,4503.9,0.7637]
[1759713103163,0.7634,4504.0,4503.9,0.7637]
[1759713103761,0.7634,4504.0,4503.5,0.1357]
[1759713103762,0.214,4504.5,4504.4,1.16319]
[1759713105266,3.2078,4505.3,4504.6,0.5525]
[1759713105470,3.4218,4505.3,4505.2,0.7637]
[1759713105968,3.7569,4505.3,4505.2,0.7637]
[1759713106771,3.9712,4505.3,4505.2,0.7637]
[1759713107665,4.37062,4505.3,4505.0,0.1357]
[1759713107866,0.7464,4504.8,4504.7,0.5547]
[1759713109071,0.7464,4504.8,4504.7,0.7703]
[1759713109771,3.2078,4505.3,4505.2,0.3266]
[1759713109969,3.2078,4505.3,4505.2,0.7703]
[1759713109970,3.7367,4505.3,4505.2,0.7703]
[1759713110166,3.9542,4505.3,4505.2,0.7703]
[1759713110863,0.7464,4505.3,4505.2,0.7703]
[1759713111369,0.39943,4505.2,4504.5,0.52729]
[1759713111671,0.208,4504.7,4504.6,0.7703]
[1759713112463,0.3209,4505.1,4504.6,0.5422]
[1759713112769,0.7464,4505.1,4505.0,0.8981]
[1759713114474,0.224,4505.3,4505.2,0.4437]
[1759713114670,0.432,4505.3,4505.2,0.7703]
[1759713114874,0.7529,4505.3,4505.2,0.7703]
[1759713115870,0.9704,4505.3,4505.2,0.7703]
[1759713118070,0.9704,4505.3,4505.2,0.5547]
[1759713120375,0.3209,4505.2,4504.8,0.72606]
[1759713120671,0.7464,4504.9,4504.8,0.95416]
[1759713120866,0.7464,4504.9,4504.8,1.16976]
[1759713122572,0.4255,4504.9,4504.8,1.16976]
[1759713124673,0.3209,4505.2,4505.1,0.39943]
[1759713124868,0.7464,4505.4,4505.3,0.95411]
[1759713125068,0.7464,4505.4,4505.3,0.5547]
[1759713126076,0.82491,4505.4,4505.1,0.72603]
[1759713126373,0.7464,4505.3,4505.2,0.95412]
[1759713126973,0.7464,4505.7,4505.6,1.16969]
[1759713127173,0.9704,4505.7,4505.6,0.7703]
[1759713127576,0.7464,4505.7,4505.6,0.7703]
[1759713128778,3.2078,4505.8,4505.7,0.72598]
[1759713128977,3.2078,4505.8,4505.7,1.16968]
[1759713129180,0.21004022,4506.0,4505.9,1.16966]
[1759713132381,0.00204022,4506.0,4505.9,1.16966]
[1759713132772,0.74844022,4506.0,4505.9,0.7703]
[1759713132976,0.7464,4505.5,4505.4,0.5547]
[1759713133180,0.7464,4505.5,4505.4,0.7703]
[1759713133385,0.4255,4505.5,4505.4,0.7703]
[1759713135386,0.7464,4505.5,4505.4,0.7703]
[1759713135980,0.74844022,4506.0,4505.9,0.5547]
[1759713136180,0.97244022,4506.0,4505.9,0.5547]
[1759713136778,0.5289,4505.6,4505.5,1.29749]
[1759713136987,0.7464,4505.6,4505.5,1.29749]
[1759713137585,0.7476,4505.6,4505.5,1.29749]
[1759713138386,0.7476,4505.6,4505.5,0.8981]
[1759713141388,0.208,4505.6,4505.5,0.8981]
[1759713141784,0.00204022,4506.0,4505.8,0.39937]
[1759713141981,0.00204022,4506.0,4505.9,0.7775]
[1759713142183,0.76124022,4506.0,4505.9,0.2082]
[1759713142383,0.89584022,4506.0,4505.9,0.5512]
[1759713142682,0.76124022,4506.0,4505.9,0.5512]
[1759713145686,0.76124022,4506.0,4505.9,0.7775]
[1759713146086,0.43914022,4506.0,4505.9,0.7775]
[1759713146489,0.76124022,4506.0,4505.9,0.7775]
[1759713149593,0.76124022,4506.0,4505.9,0.5512]
[1759713149786,0.89584022,4506.0,4505.9,0.5512]
[1759713150684,0.76124022,4506.0,4505.9,0.7775]
[1759713153591,0.00204022,4506.0,4505.9,0.7775]
[1759713156693,3.2078,4507.2,4505.9,5.0]
[1759713156894,0.337,4508.2,4505.9,5.0]
[1759713156895,0.2155,4507.6,4507.5,0.8815]
[1759713157295,0.7696,4507.6,4507.5,0.7497]
[1759713157597,0.4326,4507.3,4507.2,0.2102]
[1759713157801,0.7696,4507.3,4507.2,0.7497]
[1759713158894,0.2155,4507.3,4507.2,0.7497]